fUSD/lending_fUSD_20240719
["ID","MTS","AMOUNT","RATE_DAILY","PERIOD"]
[332620682,1721362245785,-31057.13599495,0.00014,2]
[332620683,1721362245925,-1483.31439132,0.00014,2]
[332620684,1721362245936,-69701.71977126,0.00014,2]
[332620685,1721362245974,-6345.91122988,0.00014,2]
[332620686,1721362245986,-1693.12561992,0.00014,2]
[332620687,1721362252584,200.46557454,0.00010802,2]
[332620689,1721362303774,150.0,0.00010802,2]
[332620690,1721362303794,150.0,0.00010802,2]
[332620691,1721362329569,150.0,0.00010802,2]
[332620692,1721362329835,5.0,0.00010802,2]
[332620693,1721362334205,150.0,0.00010802,2]
[332620694,1721362334233,56.10912391,0.00010802,2]
[332620701,1721362623594,199.423868,0.00010802,2]
[332620704,1721362820562,150.0,0.00011029,2]
[332620705,1721362820584,150.0,0.00011029,2]
[332620706,1721362820606,150.0,0.00011029,2]
[332620707,1721362820628,150.0,0.00011029,2]
[332620708,1721362820650,64.39,0.00011029,2]
[332620710,1721362894516,150.0,0.00011029,2]
[332620711,1721362894537,150.0,0.00011029,2]
[332620712,1721362894558,150.0,0.00011029,2]
[332620720,1721363119087,559.7648597,9e-05,2]
[332620721,1721363189525,150.0,0.00010909,2]
[332620722,1721363189549,150.0,0.00010909,2]
[332620723,1721363189571,150.0,0.00010909,2]
[332620724,1721363189591,75.2500057,0.00010909,2]
[332620726,1721363285488,573.25519027,0.00025,120]
[332620757,1721363403633,631.17,0.00010054,2]
[332620765,1721363431911,-499.44728199,0.00011525,2]
[332620766,1721363431922,-649.36484089,0.00011525,2]
[332620767,1721363431932,-300.0,0.000117,2]
[332620768,1721363431942,-48.67250125,0.00011741,2]
[332620772,1721363437877,-370.43883375,0.00011741,2]
[332620773,1721363437888,-968.86840438,0.000118,2]
[332620774,1721363437897,-209.53755941,0.00011959,2]
[332620775,1721363437907,-190.6861283,0.00011959,2]
[332620776,1721363437918,-1000.0,0.00011961,2]
[332620777,1721363437927,-2384.29117776,0.00011961,2]
[332620778,1721363437937,-300.0,0.00012071,2]
[332620779,1721363437947,-23900.0,0.00012072,2]
[332620780,1721363437957,-250.0,0.00012257,2]
[332620781,1721363437967,-631.17,0.00012318,2]
[332620782,1721363437976,-485.15544657,0.0001236,2]
[332620783,1721363437985,-531.36487114,0.0001236,2]
[332620784,1721363437995,-255.1875042,0.0001236,2]
[332620785,1721363438005,-274.52188672,0.0001236,2]
[332620786,1721363438014,-549.69983528,0.0001236,2]
[332620787,1721363438024,-270.92,0.00012485,2]
[332620788,1721363438034,-1878.35501656,0.0001251,2]
[332620789,1721363438043,-156.49323752,0.00012581,2]
[332620790,1721363438054,-487.21287005,0.00012665,2]
[332620791,1721363438064,-2195.64,0.00012681,2]
[332620792,1721363438075,-499.99,0.00012696,2]
[332620793,1721363438084,-277.723772,0.00012696,2]
[332620794,1721363438093,-1516.58,0.00012818,2]
[332620795,1721363438102,-208.21441525,0.00012818,2]
[332620796,1721363438112,-302497.67113987,0.00012999,2]
[332620797,1721363438135,-28519.78604438,0.00012999,2]
[332620800,1721363438184,-1666.61993895,0.00012999,2]
[332620801,1721363438194,-311.95847171,0.00012999,2]
[332620822,1721363440313,-251.58179602,0.0001236,2]
[332620823,1721363440322,-500.0,0.00012391,2]
[332620824,1721363440333,-29.72750247,0.00012999,2]
[332620825,1721363440621,-72017.33310852,0.00012999,2]
[332620826,1721363440631,-13404.42,0.00013,2]
[332620827,1721363440640,-294.25795803,0.00013,2]
[332620828,1721363440649,-192.7643027,0.00013066,2]
[332620829,1721363440659,-479.89198619,0.00013066,2]
[332620830,1721363440667,-1400.11,0.00013093,2]
[332620831,1721363440676,-369.63828489,0.00013133,2]
[332620832,1721363440685,-253.92596233,0.00013133,2]
[332620833,1721363440694,-366.90272672,0.00013165,2]
[332620834,1721363440703,-493.98894915,0.00013165,2]
[332620835,1721363440712,-155.94199334,0.00013165,2]
[332620836,1721363440721,-150.99,0.00013206,2]
[332620837,1721363440730,-420.0,0.0001325,2]
[332620838,1721363440739,-3113.03843627,0.00013283,2]
[332620839,1721363440748,-600.0,0.000134,4]
[332620840,1721363440758,-1000.0,0.00013456,2]
[332620841,1721363440767,-1300.0,0.000135,4]
[332620842,1721363440776,-728.34185525,0.00013561,2]
[332620843,1721363440785,-1420.32930159,0.00013561,2]
[332620844,1721363440794,-1900.0,0.000136,4]
[332620845,1721363440804,-2385.29755308,0.00013698,2]
[332620846,1721363440813,-200.0,0.00013699,2]
[332620847,1721363440823,-250.0,0.00013699,2]
[332620848,1721363440833,-1292.83,0.00013699,2]
[332620849,1721363440841,-1500.0,0.00013699,5]
[332620850,1721363440850,-186.65,0.00013699,2]
[332620851,1721363440861,-2600.0,0.000137,5]
[332620852,1721363440871,-606.60324077,0.0001379,2]
[332620853,1721363440881,-748.899216,0.00013799,2]
[332620854,1721363440890,-155.29047315,0.00013799,2]
[332620855,1721363440899,-198.46920995,0.000138,2]
[332620856,1721363440909,-3200.0,0.000138,5]
[332620857,1721363440920,-175.70923076,0.000138,2]
[332620858,1721363440930,-326.00293411,0.00013859,2]
[332620859,1721363440940,-264.01138041,0.00013859,2]
[332620860,1721363440950,-606.60324069,0.00013872,2]
[332620861,1721363440960,-748.899216,0.00013872,2]
[332620862,1721363440969,-147599.41930839,0.0001388,2]
[332620863,1721363440978,-640.12481848,0.00013899,2]
[332620864,1721363440987,-1516413.0,0.000139,2]
[332620865,1721363440996,-600.0,0.000139,5]
[332620866,1721363441005,-58458.3136269,0.000139,2]
[332620867,1721363441015,-151.0,0.000139,2]
[332620868,1721363441025,-151.0,0.000139,2]
[332620869,1721363441035,-428.59136598,0.000139,2]
[332620870,1721363441044,-186.0032978,0.000139,2]
[332620871,1721363441053,-243.34571443,0.00013986,2]
[332620872,1721363441062,-235.93478657,0.00013989,2]
[332620873,1721363441071,-439.32354858,0.00013996,2]
[332620874,1721363441080,-204.60198951,0.00013999,2]
[332620875,1721363441089,-2749.36928451,0.00013999,2]
[332620876,1721363441098,-4438.22095807,0.00013999,2]
[332620877,1721363441108,-3247557.53896562,0.00014,2]
[332620878,1721363441117,-2000.0,0.00014,2]
[332620879,1721363441126,-200.0,0.00014,2]
[332620880,1721363441135,-1000.0,0.00014,2]
[332620881,1721363441145,-1000.0,0.00014,2]
[332620882,1721363441154,-1000.0,0.00014,2]
[332620883,1721363441163,-1000.0,0.00014,2]
[332620884,1721363441172,-1000.0,0.00014,2]
[332620885,1721363441181,-1000.0,0.00014,2]
[332620886,1721363441190,-1000.0,0.00014,2]
[332620887,1721363441199,-1000.0,0.00014,2]
[332620888,1721363441210,-1000.0,0.00014,2]
[332620889,1721363441220,-1000.0,0.00014,2]
[332620890,1721363441229,-1000.0,0.00014,2]
[332620891,1721363441239,-1000.0,0.00014,2]
[332620892,1721363441249,-604.31229249,0.00014,2]
[332620893,1721363441258,-2000.0,0.00014,2]
[332620894,1721363441267,-200.0,0.00014,2]
[332620895,1721363441276,-2000.0,0.00014,2]
[332620896,1721363441285,-200.0,0.00014,2]
[332620897,1721363441294,-1619670.56386447,0.00014,2]
[332620898,1721363441305,-151.479913,0.00014,2]
[332620899,1721363441315,-223.850361,0.00014,2]
[332620900,1721363441324,-151.0,0.00014,2]
[332620901,1721363441334,-151.0,0.00014,2]
[332620902,1721363441343,-151.0,0.00014,2]
[332620903,1721363441353,-151.0,0.00014,2]
[332620904,1721363441362,-151.0,0.00014,2]
[332620905,1721363441371,-151.0,0.00014,2]
[332620906,1721363441380,-170.558529,0.00014,2]
[332620907,1721363441389,-151.0,0.00014,2]
[332620908,1721363441400,-151.0,0.00014,2]
[332620909,1721363441413,-151.0,0.00014,2]
[332620910,1721363441422,-262.101464,0.00014,2]
[332620911,1721363441431,-151.0,0.00014,2]
[332620912,1721363441441,-151.0,0.00014,2]
[332620913,1721363441451,-151.502023,0.00014,2]
[332620914,1721363441462,-152.588067,0.00014,2]
[332620915,1721363441472,-151.0,0.00014,2]
[332620916,1721363441482,-151.0,0.00014,2]
[332620917,1721363441492,-1964.67348,0.00014,2]
[332620918,1721363441502,-151.0,0.00014,2]
[332620919,1721363441512,-151.0,0.00014,2]
[332620920,1721363441524,-151.0,0.00014,2]
[332620921,1721363441538,-151.0,0.00014,2]
[332620922,1721363441549,-151.0,0.00014,2]
[332620923,1721363441558,-151.0,0.00014,2]
[332620924,1721363441567,-151.0,0.00014,2]
[332620925,1721363441577,-151.0,0.00014,2]
[332620926,1721363441586,-151.0,0.00014,2]
[332620927,1721363441595,-151.0,0.00014,2]
[332620928,1721363441605,-151.0,0.00014,2]
[332620929,1721363441616,-151.0,0.00014,2]
[332620930,1721363441626,-154.179444,0.00014,2]
[332620931,1721363441636,-156.358383,0.00014,2]
[332620932,1721363441646,-153.219207,0.00014,2]
[332620933,1721363441656,-175.65,0.00014023,2]
[332620934,1721363441665,-270.92,0.00014046,2]
[332620935,1721363441674,-1964.67348,0.0001405,2]
[332620936,1721363441685,-2617.083993,0.00014076,2]
[332620937,1721363441694,-164.0610982,0.00014086,2]
[332620938,1721363441704,-159.01791684,0.00014086,2]
[332620939,1721363441713,-231.49365247,0.00014086,2]
[332620940,1721363441723,-173.85054551,0.00014105,2]
[332620941,1721363441734,-155.0,0.00014105,2]
[332620942,1721363441743,-2000.0,0.0001414,2]
[332620943,1721363441752,-200.0,0.0001414,2]
[332620944,1721363441762,-2000.0,0.0001414,2]
[332620945,1721363441771,-200.0,0.0001414,2]
[332620946,1721363441780,-200.0,0.0001414,2]
[332620947,1721363441789,-227.43774807,0.00014261,2]
[332620948,1721363441798,-2000.0,0.00014281,2]
[332620949,1721363441807,-200.0,0.00014281,2]
[332620950,1721363441817,-2000.0,0.00014281,2]
[332620951,1721363441826,-200.0,0.00014281,2]
[332620952,1721363441837,-1964.67348,0.0001436,2]
[332620953,1721363441846,-2000.0,0.00014424,2]
[332620954,1721363441856,-200.0,0.00014424,2]
[332620955,1721363441865,-2000.0,0.00014424,2]
[332620956,1721363441874,-200.0,0.00014424,2]
[332620957,1721363441883,-156.11916564,0.00014519,2]
[332620958,1721363441893,-587.0,0.00014544,2]
[332620959,1721363441903,-2000.0,0.00014568,2]
[332620960,1721363441913,-200.0,0.00014568,2]
[332620961,1721363441923,-1621.95823627,0.00014568,2]
[332620962,1721363441933,-200.0,0.00014568,2]
[332620963,1721363441942,-161.35,0.00014573,2]
[332620964,1721363441951,-631.17,0.00014581,2]
[332620965,1721363441961,-220.44307146,0.00014667,2]
[332620966,1721363441971,-1964.67348,0.0001467,2]
[332620967,1721363441981,-606.60324069,0.0001475,2]
[332620968,1721363441991,-748.899216,0.0001475,2]
[332620969,1721363442000,-1000.0,0.00014952,2]
[332620970,1721363442009,-1964.67348,0.0001498,2]
[332620971,1721363442018,-47666.58444681,0.00015,2]
[332620972,1721363442027,-150.0,0.00015,2]
[332620973,1721363442037,-1964.67348,0.000153,2]
[332620974,1721363442046,-175.70923073,0.00015575,2]
[332620975,1721363442055,-270.92,0.00015607,2]
[332620976,1721363442064,-606.60324069,0.00015629,2]
[332620977,1721363442074,-748.899216,0.00015629,2]
[332620978,1721363442085,-823.0,0.00015965,2]
[332620979,1721363442095,-5000.0,0.00016,2]
[332620980,1721363442104,-161.35,0.00016192,2]
[332620981,1721363442113,-10801.1,0.00016405,2]
[332620982,1721363442123,-186.65,0.00016438,2]
[332620983,1721363442131,-1000.0,0.00016447,2]
[332620984,1721363442141,-350.9015628,0.0001647,2]
[332620985,1721363442150,-606.60324069,0.00016507,2]
[332620986,1721363442159,-748.899216,0.00016507,2]
[332620987,1721363442169,-590.12,0.00016575,2]
[332620988,1721363442178,-779.0,0.000167,2]
[332620989,1721363442187,-3763.0,0.000167,2]
[332620990,1721363442196,-223.850361,0.000168,2]
[332620991,1721363442207,-223.850361,0.000168,2]
[332620992,1721363442217,-631.17,0.00016845,2]
[332620993,1721363442226,-151.0,0.00016855,2]
[332620994,1721363442235,-151.0,0.00016855,2]
[332620995,1721363442244,-257.69350022,0.00016855,2]
[332620996,1721363442253,-2497.75927572,0.00017,2]
[332620997,1721363442262,-200.0,0.00017,2]
[332620998,1721363442271,-151.0,0.00017,2]
[332620999,1721363442281,-151.0,0.00017,2]
[332621000,1721363442290,-232.590302,0.00017,2]
[332621001,1721363442299,-151.0,0.00017,2]
[332621002,1721363442308,-193.158736,0.00017,2]
[332621003,1721363442317,-270.92,0.00017167,2]
[332621004,1721363442326,-175.70923073,0.0001735,2]
[332621005,1721363442337,-606.60324069,0.00017386,2]
[332621006,1721363442346,-748.899216,0.00017386,2]
[332621007,1721363442355,-428.59136598,0.000174,2]
[332621008,1721363442365,-186.0032978,0.000174,2]
[332621009,1721363442374,-1152.0,0.00017525,2]
[332621010,1721363442384,-161.35,0.00017811,2]
[332621011,1721363442394,-151.0,0.0001782,2]
[332621012,1721363442403,-1000.0,0.00017942,2]
[332621013,1721363442413,-151.0,0.00017973,2]
[332621014,1721363442423,-371.26695724,0.00018,2]
[332621015,1721363442432,-606.60324069,0.00018264,2]
[332621016,1721363442443,-748.899216,0.00018264,2]
[332621017,1721363442452,-150.0,0.00018381,2]
[332621018,1721363442462,-150.105,0.00018381,2]
[332621019,1721363442471,-270.92,0.00018728,2]
[332621020,1721363442480,-113087.85224596,0.0001878,2]
[332621021,1721363442488,-152.210984,0.0001878,2]
[332621022,1721363442497,-152.534646,0.0001878,2]
[332621023,1721363442507,-151.0,0.0001878,2]
[332621024,1721363442515,-152.263743,0.0001878,2]
[332621025,1721363442525,-387.636942,0.0001878,2]
[332621026,1721363442536,-387.636942,0.0001878,2]
[332621027,1721363442545,-223.850361,0.0001878,2]
[332621028,1721363442554,-223.850361,0.0001878,2]
[332621029,1721363442564,-175.845744,0.0001878,2]
[332621030,1721363442574,-151.0,0.0001878,2]
[332621031,1721363442585,-239.62218,0.0001878,2]
[332621032,1721363442594,-3037.41636323,0.0001878,2]
[332621033,1721363442603,-151.0,0.0001878,2]
[332621034,1721363442615,-151.0,0.0001878,2]
[332621035,1721363442625,-151.0,0.0001878,2]
[332621036,1721363442634,-151.0,0.0001878,2]
[332621037,1721363442643,-151.0,0.0001878,2]
[332621038,1721363442652,-151.0,0.0001878,2]
[332621039,1721363442661,-151.0,0.0001878,2]
[332621040,1721363442671,-250.0,0.00019,2]
[332621041,1721363442680,-631.17,0.00019109,2]
[332621042,1721363442689,-175.70923073,0.00019125,2]
[332621043,1721363442698,-606.60324069,0.00019143,2]
[332621044,1721363442708,-748.899216,0.00019143,2]
[332621045,1721363442717,-434.289827,0.00019178,2]
[332621046,1721363442727,-434.289827,0.00019178,2]
[332621047,1721363442738,-434.289827,0.00019178,2]
[332621049,1721363442747,-434.289827,0.00019178,2]
[332621051,1721363442757,-434.289827,0.00019178,2]
[332621053,1721363442766,-434.289827,0.00019178,2]
[332621056,1721363442777,-1292.83,0.00019178,2]
[332621058,1721363442786,-1613.0,0.00019237,2]
[332621060,1721363442795,-161.35,0.0001943,2]
[332621062,1721363442804,-3304.61370251,0.000195,6]
[332621065,1721363442813,-12821.64235029,0.000195,2]
[332621068,1721363442823,-285.29564591,0.0001986,2]
[332621072,1721363442834,-23138.41512709,0.00019893,2]
[332621074,1721363442843,-155.2432029,0.000199,2]
[332621076,1721363442852,-2252.6573466,0.0002,2]
[332621078,1721363442865,-328.66554707,0.0002,2]
[332621080,1721363442875,-189.01970703,0.0002,2]
[332621082,1721363442884,-1528.70856598,0.0002,2]
[332621086,1721363442895,-1284.54942005,0.0002,2]
[332621089,1721363442904,-45118.18839605,0.0002,2]
[332621092,1721363442913,-151.0,0.0002,2]
[332621095,1721363442923,-151.0,0.0002,2]
[332621097,1721363442934,-1000.0,0.0002,2]
[332621098,1721363442944,-151.0,0.0002,2]
[332621099,1721363442954,-151.0,0.0002,2]
[332621100,1721363442964,-234.87,0.0002,2]
[332621101,1721363442973,-234.87,0.0002,2]
[332621102,1721363442982,-234.87,0.0002,2]
[332621103,1721363442991,-234.87,0.0002,2]
[332621104,1721363443000,-234.87,0.0002,2]
[332621105,1721363443010,-234.87,0.0002,2]
[332621106,1721363443019,-234.87,0.0002,2]
[332621107,1721363443028,-234.87,0.0002,2]
[332621108,1721363443038,-234.87,0.0002,2]
[332621109,1721363443048,-234.87,0.0002,2]
[332621110,1721363443057,-234.87,0.0002,2]
[332621111,1721363443066,-234.87,0.0002,2]
[332621112,1721363443075,-234.87,0.0002,2]
[332621113,1721363443086,-234.87,0.0002,2]
[332621114,1721363443095,-234.87,0.0002,2]
[332621115,1721363443104,-234.87,0.0002,2]
[332621116,1721363443113,-151.0,0.0002,2]
[332621117,1721363443122,-234.87,0.0002,2]
[332621118,1721363443132,-234.87,0.0002,2]
[332621119,1721363443141,-234.87,0.0002,2]
[332621120,1721363443150,-234.87,0.0002,2]
[332621121,1721363443160,-234.87,0.0002,2]
[332621122,1721363443169,-234.87,0.0002,2]
[332621123,1721363443178,-234.87,0.0002,2]
[332621124,1721363443187,-234.87,0.0002,2]
[332621125,1721363443197,-234.87,0.0002,2]
[332621126,1721363443206,-234.87,0.0002,2]
[332621127,1721363443215,-234.87,0.0002,2]
[332621128,1721363443224,-234.87,0.0002,2]
[332621129,1721363443233,-234.87,0.0002,2]
[332621130,1721363443242,-234.87,0.0002,2]
[332621131,1721363443252,-234.87,0.0002,2]
[332621132,1721363443261,-234.87,0.0002,2]
[332621133,1721363443270,-234.87,0.0002,2]
[332621134,1721363443280,-234.87,0.0002,2]
[332621135,1721363443289,-234.87,0.0002,2]
[332621136,1721363443298,-234.87,0.0002,2]
[332621137,1721363443308,-234.87,0.0002,2]
[332621138,1721363443317,-234.87,0.0002,2]
[332621139,1721363443327,-234.87,0.0002,2]
[332621140,1721363443337,-234.87,0.0002,2]
[332621141,1721363443346,-234.87,0.0002,2]
[332621142,1721363443356,-234.87,0.0002,2]
[332621143,1721363443366,-234.87,0.0002,2]
[332621144,1721363443376,-234.87,0.0002,2]
[332621145,1721363443386,-234.87,0.0002,2]
[332621146,1721363443396,-234.87,0.0002,2]
[332621147,1721363443407,-606.60324069,0.00020021,2]
[332621148,1721363443417,-748.899216,0.00020021,2]
[332621149,1721363443427,-2027.89732579,0.000202,2]
[332621150,1721363443437,-151.0,0.000202,2]
[332621151,1721363443446,-151.0,0.000202,2]
[332621152,1721363443454,-155.60614,0.000202,2]
[332621153,1721363443463,-1000.0,0.00020417,2]
[332621154,1721363443472,-434.289827,0.00020417,2]
[332621155,1721363443482,-434.289827,0.00020417,2]
[332621156,1721363443491,-223.850361,0.00020417,2]
[332621157,1721363443500,-223.850361,0.00020417,2]
[332621158,1721363443510,-501.1585246,0.00020685,2]
[332621159,1721363443519,-151.0,0.000207,2]
[332621160,1721363443532,-151.0,0.000207,2]
[332621161,1721363443542,-387.636942,0.000207,2]
[332621162,1721363443552,-387.636942,0.000207,2]
[332621163,1721363443562,-356.0,0.000207,2]
[332621164,1721363443575,-1000.0,0.000207,2]
[332621165,1721363443586,-225.0,0.000207,2]
[332621166,1721363443595,-600.0,0.000208,7]
[332621167,1721363443606,-500.0,0.00020831,2]
[332621168,1721363443616,-500.0,0.00020832,2]
[332621169,1721363443624,-500.0,0.00020832,2]
[332621170,1721363443633,-200.0,0.00020832,2]
[332621171,1721363443642,-1000.0,0.000209,2]
[332621172,1721363443651,-606.60324069,0.000209,2]
[332621173,1721363443661,-600.0,0.000209,7]
[332621174,1721363443670,-175.70923073,0.000209,2]
[332621175,1721363443679,-748.899216,0.000209,2]
[332621176,1721363443688,-428.59136598,0.000209,2]
[332621177,1721363443697,-186.0032978,0.000209,2]
[332621178,1721363443707,-158.59936341,0.00020936,2]
[332621179,1721363443718,-4233.97152274,0.00020936,2]
[332621180,1721363443731,-157.071907,0.00020948,2]
[332621182,1721363443740,-157.071907,0.00020948,2]
[332621183,1721363443750,-157.071907,0.00020948,2]
[332621184,1721363443760,-157.071907,0.00020948,2]
[332621185,1721363443769,-3463.943589,0.00020986,2]
[332621186,1721363443779,-4310.8031851,0.00020986,2]
[332621187,1721363443788,-5157.6627811,0.00020986,2]
[332621188,1721363443797,-6004.5223771,0.00020986,2]
[332621189,1721363443806,-299.22348543,0.00020999,2]
[332621190,1721363443815,-150.0,0.00021,2]
[332621191,1721363443824,-2889613.22395721,0.00021,2]
[332621192,1721363443839,-262951.28200962,0.00021,2]
[332621193,1721363443851,-78896.43625104,0.00021,2]
[332621194,1721363443913,-2776.2641571,0.00021,2]
[332621195,1721363443925,-5990.52915173,0.00021,2]
[332621196,1721363445334,-1415.12078052,0.00013999,2]
[332621197,1721363445346,-1543.69319152,0.00013999,2]
[332621198,1721363445356,-212.56,0.00015,2]
[332621199,1721363445366,-234.87,0.0002,2]
[332621200,1721363445377,-234.87,0.0002,2]
[332621201,1721363445387,-234.87,0.0002,2]
[332621202,1721363445397,-234.87,0.0002,2]
[332621203,1721363445406,-82648.14782067,0.00021,2]
[332621212,1721363446404,-439.32354858,0.00013989,2]
[332621213,1721363446414,-1034.82508098,0.00021,2]
[332621214,1721363446426,-5375.9621004,0.00021,2]
[332621215,1721363446437,-465.75743588,0.00021,2]
[332621216,1721363446641,-6882.32577023,0.00021,2]
[332621217,1721363446654,-3794.3241,0.00021,2]
[332621218,1721363446680,-3134.81698266,0.00021,2]
[332621224,1721363731217,-369.63828489,0.00012928,2]
[332621225,1721363731236,-369.63828489,0.00012928,2]
[332621226,1721363731257,-155.08905556,0.00013979,2]
[332621227,1721363731277,-227.43774807,0.00013986,2]
[332621228,1721363731300,-494.76497167,0.00013989,2]
[332621229,1721363731324,-275.67465936,0.00013989,2]
[332621230,1721363731344,-170.63384276,0.00013989,2]
[332621231,1721363731363,-494.91277936,0.00013989,2]
[332621232,1721363731384,-156.37240965,0.00013996,2]
[332621233,1721363731405,-213.70991883,0.00013996,2]
[332621234,1721363731426,-438.98602481,0.00013996,2]
[332621235,1721363731446,-300.0,0.00013998,2]
[332621236,1721363731466,-150.0,0.00013999,2]
[332621237,1721363731487,-373.647525,0.00014,2]
[332621238,1721363731507,-373.647525,0.00014,2]
[332621239,1721363731528,-373.647525,0.00014,2]
[332621240,1721363731548,-62.19944515,0.00014,2]
[332621302,1721364632043,-1239.66730342,0.00014231,2]
[332621303,1721364632055,-479.16608278,0.00014231,2]
[332621304,1721364632064,-150.0,0.00015,2]
[332621305,1721364632074,-603.68196204,0.00015912,2]
[332621306,1721364632087,-364.35100275,0.00016,2]
[332621307,1721364632133,-2363.00493904,0.00016,2]
[332621308,1721364632144,-521.97533028,0.00016,2]
[332621309,1721364632211,-1228.11482033,0.00016,2]
[332621310,1721364632268,-522.5539076,0.00016,2]
[332621311,1721364632278,-211.66322282,0.000166,2]
[332621312,1721364632440,-528.33677718,0.000166,2]
[332621313,1721364632450,-529.72789881,0.0001695,2]
[332621314,1721364632461,-529.72789881,0.0001695,2]
[332621315,1721364632472,-550.33593598,0.00016969,2]
[332621316,1721364632492,-285.2914077,0.00016969,2]
[332621317,1721364632502,-150.0,0.00016986,2]
[332621318,1721364632512,-300.0,0.00016999,2]
[332621319,1721364632522,-164.7085923,0.00017,2]
[332621328,1721364638024,-488.95684028,0.00017,2]
[332621329,1721364638083,-1168.91354638,0.00017,2]
[332621330,1721364638098,-675.44759093,0.00017,2]
[332621331,1721364638108,-200.0,0.00017,2]
[332621332,1721364638118,-490.45,0.00017264,2]
[332621333,1721364638128,-294.09675271,0.00017264,2]
[332621334,1721364638141,-205.89324729,0.00017264,2]
[332621335,1721364638150,-1418.44,0.00017644,2]
[332621336,1721364638160,-153.0,0.00017644,2]
[332621337,1721364638171,-153.0,0.00017644,2]
[332621338,1721364638180,-109.67240907,0.00017644,2]
[332621339,1721364638212,-43.32759093,0.00017644,2]
[332621340,1721364638222,-153.0,0.00017644,2]
[332621341,1721364638233,-416.58,0.00017808,2]
[332621342,1721364638243,-398.02052222,0.00018567,2]
[332621343,1721364638255,-21.97947778,0.00018567,2]
[332621344,1721364638265,-250.0,0.00018692,2]
[332621345,1721364638275,-271.47,0.00018793,5]
[332621346,1721364638286,-250.0,0.00018801,2]
[332621347,1721364638295,-198.43,0.0001887,2]
[332621348,1721364638305,-250.0,0.00019,2]
[332621349,1721364638314,-110418.0962209,0.00019,2]
[332621350,1721364638324,-1000.0,0.00019066,2]
[332621351,1721364638334,-1318.33583268,0.00019362,2]
[332621352,1721364638396,-1063.62414582,0.00019362,2]
[332621353,1721364638420,-1869.7443923,0.00019362,2]
[332621354,1721364638443,-10342.38320472,0.00019362,2]
[332621355,1721364638455,-7272.65439133,0.00019362,2]
[332621363,1721364640076,-400.0,0.00019389,2]
[332621365,1721364640088,-96.07624443,0.0001949,2]
[332621368,1721364640137,-73.61375557,0.0001949,2]
[332621369,1721364640146,-415.11012916,0.00019528,2]
[332621370,1721364640163,-75.33987084,0.00019528,2]
[332621371,1721364640172,-367.61102567,0.0002,2]
[332621372,1721364640181,-227.92586719,0.00020109,2]
[332621373,1721364640191,-196.83,0.00020195,5]
[332621374,1721364640200,-2020.99627439,0.000202,2]
[332621375,1721364640209,-400.0,0.000202,7]
[332621376,1721364640218,-587.0,0.00020279,2]
[332621377,1721364640227,-800.0,0.000203,7]
[332621378,1721364640236,-1300.0,0.000204,7]
[332621379,1721364640245,-567.22666151,0.00020456,2]
[332621380,1721364640256,-1700.0,0.000205,7]
[332621381,1721364640265,-355.49,0.00020525,2]
[332621382,1721364640274,-355.49,0.00020525,2]
[332621383,1721364640283,-567.22666151,0.00020567,2]
[332621384,1721364640293,-1076.0405811,0.0002058,2]